fUST/lending_fUST_20240626
["ID","MTS","AMOUNT","RATE_DAILY","PERIOD"]
[330369253,1719337845660,-474.87021501,0.00016438,2]
[330369255,1719337845669,-205.58128232,0.00016438,2]
[330369257,1719337845681,-294.41871768,0.00016438,2]
[330369259,1719337845690,-151.0,0.00016438,2]
[330369261,1719337845699,-235.60043898,0.00016438,2]
[330369264,1719337845710,-348.42665679,0.00016438,2]
[330369265,1719337845719,-151.0,0.00016438,2]
[330369267,1719337845727,-151.0,0.00016438,2]
[330369269,1719337845735,-153.729144,0.00016438,2]
[330369271,1719337845744,-500.0,0.00016438,2]
[330369273,1719337845754,-110.83448334,0.00016438,2]
[330370702,1719337862965,190.63621531,0.00014965,2]
[330371233,1719337884493,150.0,0.00027129,120]
[330371845,1719337890968,8.545135,0.00025129,120]
[330371849,1719337890997,141.454865,0.00025129,120]
[330374031,1719337914218,926.65994094,0.0001496,2]
[330382592,1719338009587,181.58035626,0.0001496,2]
[330384753,1719338116869,24900.0,0.000149,2]
[330384754,1719338194432,3000.0,0.00014872,2]
[330384756,1719338221909,307.9557027,0.00014855,2]
[330384757,1719338276777,1297.9,0.0002001,22]
[330384758,1719338396446,3924.1764354,0.00014691,2]
[330384761,1719338520385,1554.72922832,0.00014691,2]
[330384763,1719338798808,163.77374,0.00023562,120]
[330384765,1719338969124,-863.0616123,0.00014128,2]
[330384791,1719339032925,-1177.98817313,0.00014128,2]
[330384793,1719339032935,-1117.87472833,0.00014128,2]
[330384795,1719339032944,-318.1015147,0.00014128,2]
[330384797,1719339032953,-300.0,0.00014608,2]
[330384799,1719339032962,-300.0,0.00014608,2]
[330384801,1719339032971,-305.74182143,0.00014608,2]
[330384803,1719339032981,-2891.79376241,0.00014609,2]
[330384805,1719339032993,-2892.71967518,0.00014609,2]
[330384807,1719339033005,-19115.48656241,0.00014609,2]
[330384809,1719339033014,-452.047059,0.00014779,2]
[330384811,1719339033024,-177.89884467,0.000151,2]
[330384813,1719339033034,-597.79480567,0.00015429,2]
[330384815,1719339033044,-2720.0,0.0001543,2]
[330384817,1719339033053,-26058.81936061,0.00015442,2]
[330384819,1719339033062,-516.72213415,0.00015604,2]
[330384821,1719339033072,-1000.90190862,0.00015605,2]
[330384823,1719339033082,-293.0841251,0.00015678,2]
[330384825,1719339033091,-293.0841251,0.000159,2]
[330384827,1719339033100,-293.0841251,0.000159,2]
[330384829,1719339033110,-4013.12608629,0.000159,2]
[330384831,1719339033119,-154.86836189,0.00015988,2]
[330384833,1719339033129,-420.0,0.00015994,2]
[330384835,1719339033138,-154.83742071,0.00015999,2]
[330384837,1719339033148,-154.83742071,0.00015999,2]
[330384839,1719339033157,-1000.0,0.00016,4]
[330384841,1719339033167,-293.0841251,0.00016,2]
[330384843,1719339033177,-293.0841251,0.00016,2]
[330384845,1719339033186,-293.0841251,0.00016,2]
[330384847,1719339033196,-293.0841251,0.00016,2]
[330384849,1719339033205,-293.0841251,0.00016,2]
[330384851,1719339033215,-293.0841251,0.00016,2]
[330384853,1719339033224,-293.0841251,0.00016,2]
[330384855,1719339033233,-293.0841251,0.00016,2]
[330384857,1719339033243,-293.0841251,0.00016,2]
[330384859,1719339033252,-293.0841251,0.00016,2]
[330384861,1719339033261,-293.0841251,0.00016,2]
[330384863,1719339033271,-4013.12608629,0.0001601,2]
[330384865,1719339033282,-2129.54772975,0.00016068,2]
[330384867,1719339033291,-420.0,0.00016069,2]
[330384869,1719339033300,-1487.40194776,0.00016099,2]
[330384871,1719339033309,-293.0841251,0.000161,2]
[330384873,1719339033318,-293.0841251,0.000161,2]
[330384875,1719339033328,-4013.12608629,0.00016119,2]
[330384877,1719339033338,-1000.0,0.00016199,2]
[330384880,1719339033349,-293.0841251,0.000162,2]
[330384881,1719339033358,-293.0841251,0.000162,2]
[330384883,1719339033368,-293.0841251,0.000162,2]
[330384885,1719339033377,-293.0841251,0.000162,2]
[330384887,1719339033387,-293.0841251,0.000162,2]
[330384889,1719339033396,-154.83742071,0.00016222,2]
[330384891,1719339033406,-157.20552492,0.00016222,2]
[330384893,1719339033415,-947.59886703,0.00016228,2]
[330384895,1719339033424,-4013.12608629,0.00016229,2]
[330384897,1719339033434,-1913.78185736,0.00016297,2]
[330384899,1719339033444,-1284.46803157,0.00016298,2]
[330384901,1719339033454,-154.86836189,0.00016298,2]
[330384903,1719339033464,-164.74803875,0.00016298,2]
[330384905,1719339033473,-239.60614247,0.000163,2]
[330384907,1719339033483,-3126.1091191,0.000163,4]
[330384909,1719339033492,-154.85288975,0.000163,2]
[330384911,1719339033502,-293.0841251,0.000163,2]
[330384913,1719339033519,-179.55856838,0.00016301,2]
[330384915,1719339033530,-490.34211049,0.00016301,2]
[330384917,1719339033540,-208.81152895,0.00016301,2]
[330384919,1719339033552,-154.86836189,0.00016302,2]
[330384921,1719339033562,-194.02935513,0.00016302,2]
[330384923,1719339033572,-154.83742071,0.00016303,2]
[330384925,1719339033582,-154.83742071,0.00016304,2]
[330384927,1719339033591,-154.83742071,0.00016304,2]
[330384929,1719339033601,-159.73407763,0.00016304,2]
[330384931,1719339033611,-154.83742071,0.00016304,2]
[330384933,1719339033621,-154.86836189,0.00016304,2]
[330384935,1719339033631,-159.73407763,0.00016305,2]
[330384937,1719339033641,-11120.40913655,0.00016308,2]
[330384939,1719339033650,-17229.55965979,0.00016309,2]
[330384941,1719339033660,-207.6392095,0.0001632,2]
[330384943,1719339033670,-5280.10467953,0.00016321,2]
[330384945,1719339033679,-153.001941,0.00016337,2]
[330384948,1719339033688,-257.262568,0.00016337,2]
[330384949,1719339033698,-257.262568,0.00016337,2]
[330384952,1719339033707,-151.0,0.00016337,2]
[330384953,1719339033716,-151.0,0.00016337,2]
[330384955,1719339033726,-151.0,0.00016337,2]
[330384957,1719339033735,-887.301058,0.00016337,2]
[330384960,1719339033745,-887.301058,0.00016337,2]
[330384962,1719339033755,-743.89291611,0.00016337,2]
[330384964,1719339033764,-151.0,0.00016337,2]
[330384965,1719339033773,-4013.12608629,0.00016338,2]
[330384967,1719339033784,-240.628,0.00016356,2]
[330384970,1719339033793,-3928.60988007,0.00016398,2]
[330384971,1719339033805,-531.18655421,0.00016399,2]
[330384973,1719339033813,-402.69286276,0.00016399,2]
[330384975,1719339033823,-402.69286276,0.00016399,2]
[330384978,1719339033833,-293.0841251,0.000164,2]
[330384980,1719339033843,-154.83742071,0.00016405,2]
[330384982,1719339033852,-349.91253739,0.00016406,2]
[330384984,1719339033862,-154.83742071,0.00016407,2]
[330384986,1719339033871,-309.41033183,0.00016407,2]
[330384988,1719339033881,-349.91253739,0.00016408,2]
[330384989,1719339033890,-176.03735811,0.00016408,2]
[330384992,1719339033899,-186.79995644,0.00016409,2]
[330384994,1719339033909,-154.86836189,0.0001641,2]
[330384995,1719339033918,-154.83742071,0.00016412,2]
[330384997,1719339033928,-932.60140374,0.00016412,2]
[330384999,1719339033937,-154.83742071,0.00016412,2]
[330385001,1719339033946,-490.8753645,0.00016436,2]
[330385003,1719339033956,-151.0,0.00016437,2]
[330385005,1719339033964,-151.0,0.00016437,2]
[330385007,1719339033974,-151.0,0.00016437,2]
[330385009,1719339033983,-714.792287,0.00016437,2]
[330385011,1719339033992,-714.792287,0.00016437,2]
[330385013,1719339034001,-990.49460368,0.00016437,2]
[330385015,1719339034011,-500.0,0.00016438,2]
[330385017,1719339034020,-500.0,0.00016438,2]
[330385019,1719339034030,-500.0,0.00016438,2]
[330385021,1719339034039,-500.0,0.00016438,2]
[330385022,1719339034048,-500.0,0.00016438,2]
[330385024,1719339034057,-500.0,0.00016438,2]
[330385026,1719339034068,-500.0,0.00016438,2]
[330385028,1719339034077,-515.17052394,0.00016438,2]
[330385030,1719339034087,-500.0,0.00016438,2]
[330385032,1719339034097,-500.0,0.00016438,2]
[330385033,1719339034106,-500.0,0.00016438,2]
[330385035,1719339034115,-555.38820252,0.00016438,2]
[330385037,1719339034125,-522.82802639,0.00016438,2]
[330385039,1719339034134,-500.0,0.00016438,2]
[330385041,1719339034143,-500.0,0.00016438,2]
[330385043,1719339034152,-500.0,0.00016438,2]
[330385044,1719339034161,-500.0,0.00016438,2]
[330385046,1719339034171,-500.0,0.00016438,2]
[330385048,1719339034180,-500.0,0.00016438,2]
[330385050,1719339034189,-500.0,0.00016438,2]
[330385052,1719339034198,-500.0,0.00016438,2]
[330385053,1719339034208,-169.86250372,0.00016438,2]
[330385055,1719339034218,-1110.19,0.00016438,2]
[330385057,1719339034226,-500.0,0.00016438,2]
[330385059,1719339034235,-500.0,0.00016438,2]
[330385061,1719339034244,-500.0,0.00016438,2]
[330385063,1719339034255,-553.80233207,0.00016438,2]
[330385064,1719339034264,-500.0,0.00016438,2]
[330385066,1719339034274,-500.0,0.00016438,2]
[330385068,1719339034284,-204.22394955,0.00016438,2]
[330385070,1719339034292,-500.0,0.00016438,2]
[330385071,1719339034301,-834.39,0.00016438,2]
[330385073,1719339034310,-500.0,0.00016438,2]
[330385075,1719339034320,-505.89694506,0.00016438,2]
[330385077,1719339034330,-500.0,0.00016438,2]
[330385079,1719339034339,-500.0,0.00016438,2]
[330385081,1719339034348,-500.0,0.00016438,2]
[330385082,1719339034358,-500.0,0.00016438,2]
[330385084,1719339034368,-1393.6,0.00016438,2]
[330385086,1719339034377,-524.20828218,0.00016438,2]
[330385088,1719339034386,-500.0,0.00016438,2]
[330385090,1719339034395,-500.0,0.00016438,2]
[330385092,1719339034405,-500.0,0.00016438,2]
[330385093,1719339034415,-500.0,0.00016438,2]
[330385095,1719339034424,-500.0,0.00016438,2]
[330385097,1719339034434,-500.0,0.00016438,2]
[330385099,1719339034443,-500.0,0.00016438,2]
[330385101,1719339034453,-500.0,0.00016438,2]
[330385103,1719339034462,-500.0,0.00016438,2]
[330385105,1719339034471,-500.0,0.00016438,2]
[330385107,1719339034480,-500.0,0.00016438,2]
[330385108,1719339034490,-500.0,0.00016438,2]
[330385110,1719339034499,-500.0,0.00016438,2]
[330385112,1719339034514,-566.29215524,0.00016438,2]
[330385114,1719339034523,-500.0,0.00016438,2]
[330385116,1719339034533,-500.0,0.00016438,2]
[330385118,1719339034543,-500.0,0.00016438,2]
[330385120,1719339034553,-500.0,0.00016438,2]
[330385121,1719339034563,-500.0,0.00016438,2]
[330385123,1719339034573,-773.4,0.00016438,2]
[330385125,1719339034582,-241.03126965,0.00016438,2]
[330385127,1719339034595,-500.0,0.00016438,2]
[330385129,1719339034604,-543.30018991,0.00016438,2]
[330385131,1719339034614,-500.0,0.00016438,2]
[330385133,1719339034623,-517.54358552,0.00016438,2]
[330385134,1719339034632,-500.0,0.00016438,2]
[330385136,1719339034642,-500.0,0.00016438,2]
[330385138,1719339034651,-1271.41,0.00016438,2]
[330385140,1719339034660,-500.0,0.00016438,2]
[330385141,1719339034670,-500.0,0.00016438,2]
[330385143,1719339034679,-500.0,0.00016438,2]
[330385145,1719339034688,-500.0,0.00016438,2]
[330385147,1719339034698,-500.0,0.00016438,2]
[330385149,1719339034707,-500.97188898,0.00016438,2]
[330385151,1719339034716,-408.17647164,0.00016438,2]
[330385153,1719339034726,-500.0,0.00016438,2]
[330385155,1719339034735,-520.66848931,0.00016438,2]
[330385157,1719339034744,-500.0,0.00016438,2]
[330385159,1719339034754,-500.0,0.00016438,2]
[330385160,1719339034763,-500.0,0.00016438,2]
[330385162,1719339034773,-500.0,0.00016438,2]
[330385176,1719339034904,-500.0,0.00016438,2]
[330385178,1719339034915,-500.0,0.00016438,2]
[330385180,1719339034924,-500.0,0.00016438,2]
[330385182,1719339034934,-500.0,0.00016438,2]
[330385183,1719339034943,-500.0,0.00016438,2]
[330385185,1719339034952,-10291.53,0.00016438,2]
[330385187,1719339034961,-1153.36,0.00016438,2]
[330385189,1719339034970,-500.0,0.00016438,2]
[330385191,1719339034979,-500.0,0.00016438,2]
[330385193,1719339034988,-500.0,0.00016438,2]
[330385194,1719339034997,-500.0,0.00016438,2]
[330385196,1719339035006,-532.2257447,0.00016438,2]
[330385198,1719339035016,-500.0,0.00016438,2]
[330385200,1719339035025,-500.0,0.00016438,2]
[330385202,1719339035035,-245.93772323,0.00016438,2]
[330385204,1719339035044,-1148.55,0.00016438,2]
[330385206,1719339035053,-500.0,0.00016438,2]
[330385207,1719339035062,-500.0,0.00016438,2]
[330385209,1719339035072,-500.0,0.00016438,2]
[330385211,1719339035083,-500.0,0.00016438,2]
[330385213,1719339035092,-179.32636267,0.00016438,2]
[330385215,1719339035103,-500.0,0.00016438,2]
[330385217,1719339035112,-500.0,0.00016438,2]
[330385219,1719339035123,-500.0,0.00016438,2]
[330385220,1719339035132,-586.06,0.00016438,2]
[330385222,1719339035142,-530.43977358,0.00016438,2]
[330385224,1719339035152,-500.0,0.00016438,2]
[330385226,1719339035162,-500.0,0.00016438,2]
[330385228,1719339035171,-500.0,0.00016438,2]
[330385230,1719339035181,-615.38,0.00016438,2]
[330385232,1719339035191,-167.35132828,0.00016438,2]
[330385234,1719339035201,-500.0,0.00016438,2]
[330385236,1719339035211,-596.77,0.00016438,2]
[330385238,1719339035220,-251.3026474,0.00016438,2]
[330385240,1719339035229,-500.0,0.00016438,2]
[330385241,1719339035239,-500.0,0.00016438,2]
[330385243,1719339035249,-500.0,0.00016438,2]
[330385245,1719339035258,-500.0,0.00016438,2]
[330385247,1719339035267,-2379.04,0.00016438,2]
[330385249,1719339035277,-502.67813383,0.00016438,2]
[330385251,1719339035288,-518.19516205,0.00016438,2]
[330385253,1719339035298,-500.0,0.00016438,2]
[330385255,1719339035307,-500.0,0.00016438,2]
[330385257,1719339035317,-500.0,0.00016438,2]
[330385258,1719339035327,-500.0,0.00016438,2]
[330385260,1719339035337,-500.0,0.00016438,2]
[330385262,1719339035348,-500.0,0.00016438,2]
[330385264,1719339035358,-500.0,0.00016438,2]
[330385266,1719339035367,-500.0,0.00016438,2]
[330385268,1719339035377,-500.0,0.00016438,2]
[330385270,1719339035387,-500.0,0.00016438,2]
[330385272,1719339035397,-500.0,0.00016438,2]
[330385274,1719339035406,-500.0,0.00016438,2]
[330385276,1719339035416,-500.0,0.00016438,2]
[330385278,1719339035426,-500.0,0.00016438,2]
[330385280,1719339035435,-500.0,0.00016438,2]
[330385281,1719339035445,-502.68425966,0.00016438,2]
[330385283,1719339035454,-1417.84,0.00016438,2]
[330385285,1719339035464,-500.0,0.00016438,2]
[330385287,1719339035474,-500.0,0.00016438,2]
[330385289,1719339035484,-500.0,0.00016438,2]
[330385291,1719339035494,-500.0,0.00016438,2]
[330385293,1719339035504,-151.0,0.00016438,2]
[330385295,1719339035516,-151.0,0.00016438,2]
[330385297,1719339035526,-151.0,0.00016438,2]
[330385299,1719339035539,-508.71221822,0.00016438,2]
[330385301,1719339035550,-151.0,0.00016438,2]
[330385303,1719339035560,-151.0,0.00016438,2]
[330385304,1719339035569,-500.0,0.00016438,2]
[330385306,1719339035580,-151.0,0.00016438,2]
[330385307,1719339035593,-151.0,0.00016438,2]
[330385308,1719339035602,-151.0,0.00016438,2]
[330385309,1719339035612,-151.0,0.00016438,2]
[330385310,1719339035622,-151.0,0.00016438,2]
[330385311,1719339035632,-151.0,0.00016438,2]
[330385312,1719339035641,-151.0,0.00016438,2]
[330385313,1719339035650,-151.0,0.00016438,2]
[330385314,1719339035660,-500.0,0.00016438,2]
[330385315,1719339035670,-151.0,0.00016438,2]
[330385316,1719339035679,-151.0,0.00016438,2]
[330385317,1719339035688,-190.84565776,0.00016438,2]
[330385318,1719339035698,-530.02580011,0.00016438,2]
[330385319,1719339035708,-500.0,0.00016438,2]
[330385320,1719339035717,-500.0,0.00016438,2]
[330385321,1719339035726,-549.8,0.00016438,2]
[330385322,1719339035736,-500.0,0.00016438,2]
[330385323,1719339035745,-500.0,0.00016438,2]
[330385324,1719339035755,-500.0,0.00016438,2]
[330385325,1719339035764,-500.0,0.00016438,2]
[330385326,1719339035774,-1070.92,0.00016438,2]
[330385327,1719339035786,-500.0,0.00016438,2]
[330385328,1719339035797,-736.51,0.00016438,2]
[330385329,1719339035807,-500.0,0.00016438,2]
[330385330,1719339035817,-500.0,0.00016438,2]
[330385331,1719339035827,-503.40277949,0.00016438,2]
[330385332,1719339035836,-511.16177604,0.00016438,2]
[330385333,1719339035846,-500.0,0.00016438,2]
[330385334,1719339035856,-500.0,0.00016438,2]
[330385335,1719339035866,-502.32971297,0.00016438,2]
[330385336,1719339035875,-500.0,0.00016438,2]
[330385337,1719339035885,-500.0,0.00016438,2]
[330385338,1719339035896,-626.27,0.00016438,2]
[330385339,1719339035905,-626.27,0.00016438,2]
[330385340,1719339035915,-626.27,0.00016438,2]
[330385341,1719339035924,-626.27,0.00016438,2]
[330385342,1719339035933,-626.27,0.00016438,2]
[330385343,1719339035942,-626.27,0.00016438,2]
[330385344,1719339035952,-626.27,0.00016438,2]
[330385345,1719339035961,-626.27,0.00016438,2]
[330385346,1719339035971,-626.27,0.00016438,2]
[330385347,1719339035980,-626.27,0.00016438,2]
[330385348,1719339035989,-626.27,0.00016438,2]
[330385349,1719339035998,-626.27,0.00016438,2]
[330385350,1719339036007,-500.0,0.00016438,2]
[330385351,1719339036017,-626.27,0.00016438,2]
[330385352,1719339036026,-626.27,0.00016438,2]
[330385353,1719339036038,-556.18046274,0.00016438,2]
[330385354,1719339036047,-626.27,0.00016438,2]
[330385355,1719339036056,-500.0,0.00016438,2]
[330385356,1719339036066,-500.0,0.00016438,2]
[330385357,1719339036076,-500.0,0.00016438,2]
[330385358,1719339036085,-500.0,0.00016438,2]
[330385359,1719339036094,-500.0,0.00016438,2]
[330385360,1719339036103,-500.0,0.00016438,2]
[330385361,1719339036113,-500.0,0.00016438,2]
[330385362,1719339036122,-500.0,0.00016438,2]
[330385363,1719339036131,-500.0,0.00016438,2]
[330385364,1719339036140,-500.0,0.00016438,2]
[330385365,1719339036149,-500.0,0.00016438,2]
[330385366,1719339036159,-500.0,0.00016438,2]
[330385367,1719339036168,-500.0,0.00016438,2]
[330385368,1719339036177,-631.34,0.00016438,2]
[330385369,1719339036187,-500.0,0.00016438,2]
[330385370,1719339036196,-500.0,0.00016438,2]
[330385371,1719339036205,-570.57,0.00016438,2]
[330385372,1719339036214,-500.0,0.00016438,2]
[330385373,1719339036223,-500.0,0.00016438,2]
[330385374,1719339036232,-1585.88,0.00016438,2]
[330385375,1719339036241,-500.0,0.00016438,2]
[330385376,1719339036250,-500.0,0.00016438,2]
[330385377,1719339036260,-500.0,0.00016438,2]
[330385378,1719339036269,-500.0,0.00016438,2]
[330385379,1719339036279,-500.0,0.00016438,2]
[330385380,1719339036289,-500.0,0.00016438,2]
[330385381,1719339036298,-500.0,0.00016438,2]
[330385382,1719339036307,-500.0,0.00016438,2]
[330385383,1719339036316,-500.0,0.00016438,2]
[330385384,1719339036325,-502.19296284,0.00016438,2]
[330385385,1719339036334,-515.6,0.00016438,2]
[330385386,1719339036344,-500.0,0.00016438,2]
[330385387,1719339036353,-500.0,0.00016438,2]
[330385388,1719339036362,-500.0,0.00016438,2]
[330385389,1719339036371,-500.0,0.00016438,2]
[330385390,1719339036381,-500.0,0.00016438,2]
[330385391,1719339036390,-348.51052864,0.00016438,2]
[330385564,1719339038178,-161.46808677,0.00016118,2]
[330385566,1719339038188,-307.58990523,0.00016297,2]
[330386559,1719339142602,273.37336231,9.9e-05,2]
[330386560,1719339228732,401.59956828,0.00012,2]
[330386561,1719339246566,154.88383093,0.00012,2]
[330386569,1719339737103,309.893257,0.00013644,2]
[330386571,1719339847170,231.27995887,9.999e-05,2]
[330386573,1719339941958,226.023529,0.00013699,2]
[330386574,1719339943038,249.12465841,0.0001212,2]
[330386575,1719339958768,5587.75796124,0.0001212,2]
[330386577,1719340026460,3000.0,0.00013699,2]
[330386578,1719340048700,791.9747798,0.00013712,2]
[330386580,1719340081442,6971.98727304,9.999e-05,2]
[330386586,1719340212891,1486.35642295,0.0001212,2]
[330386598,1719340234062,-300.0,0.00014088,2]
[330386599,1719340234071,-300.0,0.00014088,2]
[330386600,1719340234080,-5812.8,0.00014089,2]
[330386601,1719340234093,-4748.12625688,0.00014089,2]
[330386602,1719340234102,-1522.3373211,0.00014089,2]
[330387061,1719340239328,-547.3820516,0.00014089,2]
[330387063,1719340239340,-1001.40150104,0.00014089,2]
[330387065,1719340239353,-1755.94292763,0.00014089,2]
[330387067,1719340239366,-6695.92458652,0.00014089,2]
[330387069,1719340239378,-1004.7576,0.00014089,2]
[330387077,1719340240194,819.0999939,0.00013764,2]
[330387112,1719340240696,-1251.4726332,0.00014089,2]
[330387113,1719340240708,-619.71305479,0.00014089,2]
[330387114,1719340240721,-261.546,0.00014089,2]
[330387134,1719340240951,-2569.08198391,0.00014089,2]
[330387136,1719340240963,-8511.9862429,0.0001409,2]
[330387138,1719340240973,-166.56800558,0.00014318,2]
[330387140,1719340240983,-179.55856838,0.00014608,2]
[330387142,1719340240996,-267.92799825,0.00014691,2]
[330387144,1719340241007,-2266.20232864,0.00015,2]
[330387147,1719340241018,-26058.81936061,0.00015,2]
[330387148,1719340241028,-2824.79281863,0.00015,2]
[330387151,1719340241038,-947.59886703,0.00015,2]
[330387153,1719340241047,-1049.66753091,0.00015397,2]
[330387155,1719340241057,-349.0,0.00015433,2]
[330387156,1719340241066,-420.0,0.00015497,2]
[330387158,1719340241076,-490.34211049,0.00015625,2]
[330387160,1719340241085,-1049.66753088,0.00015632,2]
[330387162,1719340241094,-293.0841251,0.000158,2]
[330387164,1719340241103,-531.18655421,0.00015806,2]
[330387166,1719340241112,-531.18655421,0.00015806,2]
[330387168,1719340241122,-1117.87472833,0.00015806,2]
[330387170,1719340241132,-1049.66753088,0.00015868,2]
[330387173,1719340241142,-153.0,0.00015945,2]
[330387175,1719340241152,-153.0,0.00015945,2]
[330387177,1719340241162,-3126.1091191,0.00015988,4]
[330387179,1719340241174,-155.07932839,0.00015999,2]
[330387180,1719340241183,-293.0841251,0.00016,2]
[330387182,1719340241192,-293.0841251,0.00016,2]
[330387184,1719340241201,-205.8057007,0.00016,2]
[330387187,1719340241212,-293.0841251,0.00016,2]
[330387189,1719340241222,-205.8057007,0.00016,2]
[330387190,1719340241231,-293.0841251,0.00016,2]
[330387192,1719340241241,-1913.78185736,0.00016053,2]
[330387194,1719340241250,-277.93187021,0.00016054,2]
[330387196,1719340241260,-153.0,0.00016055,2]
[330387198,1719340241269,-153.0,0.00016055,2]
[330387200,1719340241279,-597.25711609,0.00016069,2]
[330387202,1719340241289,-239.60614247,0.00016081,2]
[330387205,1719340241299,-226.4359056,0.00016082,2]
[330387206,1719340241308,-153.0,0.00016082,2]
[330387208,1719340241318,-153.0,0.00016082,2]
[330387210,1719340241327,-153.0,0.00016082,2]
[330387212,1719340241337,-1049.66753088,0.00016103,2]
[330387215,1719340241346,-155.33384769,0.00016258,2]
[330387216,1719340241356,-155.0305585,0.00016259,2]
[330387218,1719340241366,-193.58364806,0.00016259,2]
[330387220,1719340241376,-154.86836189,0.00016259,2]
[330387222,1719340241385,-484.11749699,0.0001626,2]
[330387224,1719340241394,-195.49846886,0.0001626,2]
[330387226,1719340241404,-1631.82159369,0.00016261,2]
[330387228,1719340241413,-403.16993933,0.00016262,2]
[330387230,1719340241424,-208.81152895,0.00016267,2]
[330387233,1719340241434,-229.20066308,0.00016293,2]
[330387234,1719340241443,-154.86836189,0.00016294,2]
[330387237,1719340241452,-524.47181177,0.00016294,2]
[330387238,1719340241462,-1000.0,0.00016294,2]
[330387241,1719340241472,-155.02124329,0.00016296,2]
[330387242,1719340241481,-175.90410667,0.00016296,2]
[330387244,1719340241490,-528.50674641,0.00016296,2]
[330387246,1719340241500,-155.05277752,0.00016297,2]
[330387248,1719340241510,-317.7693132,0.00016299,2]
[330387250,1719340241519,-292.95882568,0.00016305,2]
[330387252,1719340241528,-154.83742071,0.00016306,2]
[330387254,1719340241538,-1049.66753088,0.00016338,2]
[330387256,1719340241547,-2401.00125995,0.00016338,2]
[330387499,1719340244133,-205.8057007,0.00015478,2]
[330387501,1719340244142,-293.0841251,0.00015478,2]
[330387504,1719340244151,-153.0,0.00015945,2]
[330387507,1719340244161,-209.72130719,0.00016102,2]
[330387509,1719340244172,-157.20552492,0.00016222,2]
[330387511,1719340244181,-159.73407763,0.00016261,2]
[330387514,1719340244328,-1723.40046863,0.00016338,2]
[330387515,1719340244367,-7191.40594158,0.00016338,2]
[330387516,1719340244390,-0.00344525,0.00016338,2]
[330388096,1719340372934,13584.8239403,0.00013792,2]
[330388101,1719340473341,2620.5966269,0.00013743,2]
[330388102,1719340527280,258.331956,0.00013699,2]
[330388108,1719340632350,1102.77481401,0.00013988,2]
[330388115,1719340684864,273.37336231,9.9e-05,2]
[330388123,1719340863192,300.24927175,0.00012,2]
[330388126,1719340884789,1195.19459238,0.00013988,2]
[330388129,1719341024267,205.3988817,0.00013988,2]
[330388135,1719341058673,258.3319578,0.00013699,2]
[330388142,1719341092406,565.83326215,9.999e-05,2]
[330388145,1719341117847,402.69286276,9.999e-05,2]
[330388146,1719341119629,154.83742071,9.999e-05,2]
[330388149,1719341150926,519.98573171,0.0001212,2]
[330388152,1719341160381,154.83742071,0.0001212,2]
[330388153,1719341161351,402.47506882,0.0001212,2]
[330388156,1719341249854,501.0,0.00026,120]
[330388158,1719341257572,154.83742071,9.999e-05,2]
[330388162,1719341299307,-492.72037394,0.00014027,2]
[330388163,1719341320585,154.83742071,0.0001212,2]
[330388164,1719341326057,159.6495148,9.999e-05,2]
[330388165,1719341329030,484.76687549,9.999e-05,2]
[330388169,1719341337189,156.42887627,0.0001212,2]
[330388170,1719341361181,-290.84197287,0.00014027,2]
[330388180,1719341424188,179.55856838,9.999e-05,2]
[330388181,1719341426127,531.18655421,9.999e-05,2]
[330388256,1719341433046,-434.29098335,0.00014027,2]
[330388258,1719341433058,-695.9285272,0.00014027,2]
[330388260,1719341433067,-516.72213415,0.00014027,2]